bitfinex-derivatives/quotes_BTCF0:USTF0_20250429
["timestamp","ask_amount","ask_price","bid_price","bid_amount"]
[1745941449829,0.2738581,95007.0,95006.0,0.004]
[1745941450027,0.2738581,95007.0,95006.0,0.2144603]
[1745941450222,0.3938581,95007.0,95006.0,0.2144603]
[1745941450426,0.3938581,95007.0,95006.0,0.004]
[1745941450820,0.3938581,95007.0,95006.0,0.2144603]
[1745941451121,0.2738581,95007.0,95006.0,0.2144603]
[1745941451516,0.2431581,95007.0,95006.0,0.2144603]
[1745941452323,0.2431581,95007.0,95006.0,0.2134603]
[1745941453119,0.2431581,95007.0,95006.0,0.2144603]
[1745941453322,0.2431581,95007.0,95006.0,0.2124603]
[1745941453520,0.2431581,95007.0,95006.0,0.2144603]
[1745941455024,0.2431581,95007.0,95006.0,0.2446603]
[1745941455725,0.2431581,95007.0,95006.0,0.004]
[1745941456121,0.3631581,95007.0,95006.0,0.004]
[1745941456944,0.3631581,95007.0,95006.0,0.002]
[1745941457632,0.2104714,95001.0,95000.0,0.23183612]
[1745941458220,0.3304714,95001.0,95000.0,0.23183612]
[1745941458433,0.3915714,95001.0,95000.0,0.23183612]
[1745941459133,0.3915714,95001.0,95000.0,0.23283612]
[1745941459431,0.3915714,95001.0,95000.0,0.23383612]
[1745941460132,0.3915714,95001.0,95000.0,0.23483612]
[1745941460535,0.3915714,95001.0,95000.0,0.23283612]
[1745941460735,0.3915714,95001.0,95000.0,0.23483612]
[1745941462333,0.12,95001.0,95000.0,0.23483612]
[1745941462535,0.3304714,95001.0,95000.0,0.23483612]
[1745941463028,0.3304714,95001.0,95000.0,1.73483612]
[1745941463233,0.2104714,95001.0,95000.0,1.73483612]
[1745941463625,0.2104714,95001.0,95000.0,0.23583612]
[1745941463828,0.2104714,95001.0,95000.0,0.02536332]
[1745941464027,0.2421714,95001.0,95000.0,0.02536332]
[1745941464228,0.3621714,95001.0,95000.0,0.02536332]
[1745941464451,0.3621714,95001.0,95000.0,0.005]
[1745941464630,0.3621714,95001.0,95000.0,0.006]
[1745941465035,0.3621714,95001.0,95000.0,0.003]
[1745941465235,0.3621714,95001.0,95000.0,0.005]
[1745941466034,0.3621714,95001.0,95000.0,0.002]
[1745941466240,0.3621714,95001.0,95000.0,0.004]
[1745941466636,0.2104781,94998.0,94997.0,0.00772371]
[1745941466831,0.2104803,94997.0,94996.0,0.2426825]
[1745941467046,0.2405803,94997.0,94996.0,0.2426825]
[1745941467832,0.2405803,94997.0,94996.0,0.25055842]
[1745941468344,0.2405803,94997.0,94996.0,0.25155842]
[1745941469643,0.2405803,94997.0,94996.0,0.25355842]
[1745941476144,0.2405803,94997.0,94996.0,0.04307592]
[1745941476343,0.2405803,94997.0,94996.0,0.01087592]
[1745941477241,0.3605803,94997.0,94996.0,0.01087592]
[1745941478042,0.3605803,94997.0,94996.0,0.00987592]
[1745941478240,0.3605803,94997.0,94996.0,0.01087592]
[1745941478436,0.3605803,94997.0,94996.0,0.00987592]
[1745941478642,0.3605803,94997.0,94996.0,0.22035842]
[1745941479460,0.3605803,94997.0,94996.0,0.21935842]
[1745941479653,0.3605803,94997.0,94996.0,0.22035842]
[1745941480146,0.3605803,94997.0,94996.0,0.61165842]
[1745941480348,0.3605803,94997.0,94996.0,0.64335842]
[1745941481252,0.2405803,94997.0,94996.0,0.64335842]
[1745941481549,0.2405803,94997.0,94996.0,0.64235842]
[1745941481749,0.2405803,94997.0,94996.0,0.64635842]
[1745941482251,0.2405803,94997.0,94996.0,0.64735842]
[1745941482847,0.2405803,94997.0,94996.0,0.64435842]
[1745941483042,0.2405803,94997.0,94996.0,0.64735842]
[1745941483651,0.2405803,94997.0,94996.0,0.64435842]
[1745941483851,0.2405803,94997.0,94996.0,0.64735842]
[1745941484643,0.2405803,94997.0,94996.0,0.64635842]
[1745941484850,0.2104803,94997.0,94996.0,0.64635842]
[1745941486046,0.2749803,94997.0,94996.0,0.64635842]
[1745941486550,0.2433803,94997.0,94996.0,0.64635842]
[1745941487248,0.08013897,95005.0,94998.0,0.0526193]
[1745941487443,0.34321927,95005.0,95004.0,0.5712648]
[1745941487953,0.34321927,95005.0,95004.0,2.0712648]
[1745941488151,0.34321927,95005.0,95004.0,2.1373048]
[1745941488354,0.34321927,95005.0,95004.0,2.2006048]
[1745941488847,0.34321927,95005.0,95004.0,2.2016048]
[1745941489246,0.34321927,95005.0,95004.0,2.3216048]
[1745941489446,0.2630803,95005.0,95004.0,2.3236048]
[1745941490254,0.2630803,95005.0,95004.0,2.2036048]
[1745941490654,0.2630803,95005.0,95004.0,2.2066048]
[1745941494473,0.2104646,95005.0,95004.0,2.2066048]
[1745941494848,0.21046,95007.0,95006.0,0.2630704]
[1745941495049,0.21046,95007.0,95006.0,0.3291104]
[1745941495245,0.2630637,95012.0,95011.0,0.2104493]
[1745941496155,0.2630637,95012.0,95011.0,0.2738493]
[1745941497147,0.2630637,95012.0,95011.0,0.2748493]
[1745941498050,0.2630637,95012.0,95011.0,0.2768493]
[1745941499362,0.2104453,95013.0,95012.0,0.2104448]
[1745941499666,0.2104453,95013.0,95012.0,0.6035448]
[1745941499850,0.0306,95014.0,95013.0,0.2104448]
[1745941500052,0.2410426,95014.0,95013.0,0.2725448]
[1745941500756,0.2410426,95014.0,95013.0,0.2407448]
[1745941501359,0.2735426,95014.0,95013.0,0.2407448]
[1745941501655,0.2735426,95014.0,95013.0,0.2104448]
[1745941501855,0.2735426,95014.0,95013.0,0.2428448]
[1745941502057,0.2410426,95014.0,95013.0,0.2428448]
[1745941502257,0.2410426,95014.0,95013.0,0.2756448]
[1745941502760,0.2410426,95014.0,95013.0,0.2766448]
[1745941504357,0.2410426,95014.0,95013.0,0.2448448]
[1745941511251,0.2410426,95014.0,95013.0,0.3108848]
[1745941514661,0.2724426,95014.0,95013.0,0.3108848]
[1745941515470,0.2724426,95014.0,95013.0,0.06804]
[1745941515661,0.2724426,95014.0,95013.0,0.2784848]
[1745941515862,0.6332426,95014.0,95013.0,0.002]
[1745941516062,0.2104537,95009.0,95008.0,0.06556]
[1745941516262,0.2104803,94997.0,94996.0,0.00787592]
[1745941516463,0.2104847,94995.0,94994.0,0.16100748]
[1745941517172,0.3934847,94995.0,94994.0,0.16100748]
[1745941517768,0.2104891,94993.0,94992.0,0.02080454]
[1745941518159,0.3304891,94993.0,94992.0,0.02080454]
[1745941518567,0.3304891,94993.0,94992.0,0.00157907]
[1745941518870,0.3304891,94993.0,94992.0,0.00939211]
[1745941519271,0.3304891,94993.0,94992.0,0.02898057]
[1745941519773,0.3314891,94993.0,94992.0,0.02898057]
[1745941520860,0.3314891,94993.0,94992.0,0.00939211]
[1745941521961,0.4367611,94993.0,94992.0,0.00939211]
[1745941522875,0.210529,94975.0,94974.0,0.01823193]
[1745941523062,0.210529,94975.0,94974.0,0.22876323]
[1745941523262,0.0526327,94975.0,94972.0,0.0656]
[1745941523477,0.2105489,94971.0,94970.0,0.3158013]
[1745941523674,0.2105489,94971.0,94970.0,0.3814013]
[1745941524489,0.0313,94974.0,94973.0,0.2105335]
[1745941524675,0.0526278,94984.0,94983.0,0.2631342]
[1745941524872,0.2105091,94984.0,94983.0,0.3157615]
[1745941525066,0.2105091,94984.0,94983.0,0.2631342]
[1745941525267,0.2742091,94984.0,94983.0,0.2631342]
[1745941525869,0.2742091,94984.0,94983.0,0.2661342]
[1745941526478,0.2742091,94984.0,94983.0,0.2691342]
[1745941527070,0.2742091,94984.0,94983.0,0.2661342]
[1745941527272,0.2742091,94984.0,94983.0,0.2996342]
[1745941528776,0.2742091,94984.0,94983.0,0.2966342]
[1745941529080,0.2742091,94984.0,94983.0,0.2986342]
[1745941529582,0.2742091,94984.0,94983.0,0.2966342]
[1745941529882,0.2742091,94984.0,94983.0,0.2986342]
[1745941530476,0.2742091,94984.0,94983.0,0.005]
[1745941531078,0.3942091,94984.0,94983.0,0.002]
[1745941531279,0.3942091,94984.0,94983.0,0.005]
[1745941531780,0.3942091,94984.0,94983.0,0.003]
[1745941532680,0.3942091,94984.0,94983.0,0.002]
[1745941533683,0.263169,94974.0,94973.0,0.2105332]
[1745941533883,0.3158023,94974.0,94973.0,0.2105332]
[1745941534183,0.4358023,94974.0,94973.0,0.2105332]
[1745941534882,0.4358023,94974.0,94973.0,0.2135332]
[1745941535084,0.4358023,94974.0,94973.0,0.2165332]
[1745941535479,0.4358023,94974.0,94973.0,0.006]
[1745941535882,0.4358023,94974.0,94973.0,0.2165335]
[1745941537284,0.4358023,94974.0,94973.0,0.006]
[1745941538187,0.3158023,94974.0,94973.0,0.006]
[1745941539185,0.4358023,94974.0,94973.0,0.006]
[1745941540989,0.3305357,94974.0,94973.0,0.2165335]
[1745941541193,0.241826,94977.0,94974.0,0.0526323]
[1745941541489,0.241826,94977.0,94976.0,0.2105268]
[1745941541691,0.241826,94977.0,94976.0,1.7105268]
[1745941541887,0.241826,94977.0,94976.0,1.7763268]
[1745941542590,0.0313,94977.0,94976.0,1.7763268]
[1745941542792,0.2418246,94977.0,94976.0,1.7763268]
[1745941544494,0.2418246,94977.0,94976.0,1.7783268]
[1745941544685,0.2418246,94977.0,94976.0,1.7803268]
[1745941545087,0.2418246,94977.0,94976.0,1.7783268]
[1745941545293,0.2418246,94977.0,94976.0,1.7813268]
[1745941545693,0.2418246,94977.0,94976.0,1.7783268]
[1745941545993,0.2418246,94977.0,94976.0,1.7823268]
[1745941547395,0.2418246,94977.0,94976.0,1.7793268]
[1745941547698,0.2418246,94977.0,94976.0,1.7823268]
[1745941548290,0.2418246,94977.0,94976.0,0.2813268]
[1745941548492,0.2418246,94977.0,94976.0,0.0706]
[1745941548790,0.2418246,94977.0,94976.0,0.005]
[1745941549394,0.2729246,94977.0,94976.0,0.005]
[1745941549890,0.2729246,94977.0,94976.0,0.2155268]
[1745941550890,0.2729246,94977.0,94976.0,0.2125268]
[1745941551086,0.2729246,94977.0,94976.0,0.004]
[1745941551291,0.2729246,94977.0,94976.0,0.2145268]
[1745941554191,0.2631685,94975.0,94971.0,0.1182344]
[1745941554385,0.2105335,94973.0,94972.0,0.2631674]
[1745941554798,0.2750335,94973.0,94972.0,0.2631674]
[1745941555183,0.2750335,94973.0,94972.0,1.7631674]
[1745941556384,0.2750335,94973.0,94972.0,1.7651674]
[1745941556585,0.2750335,94973.0,94972.0,0.2671674]
[1745941556795,0.2750335,94973.0,94972.0,0.2145335]
[1745941559893,0.2750335,94973.0,94972.0,0.2372335]
[1745941562098,0.0315,94973.0,94972.0,0.5980335]
[1745941562290,0.0315,94973.0,94972.0,0.6295335]
[1745941562490,0.08013897,94981.0,94980.0,0.210518]
[1745941562697,0.08013897,94981.0,94980.0,0.571318]
[1745941562896,0.29065467,94981.0,94980.0,0.571318]
[1745941563092,0.29065467,94981.0,94980.0,2.071318]
[1745941563600,0.29065467,94981.0,94980.0,2.072318]
[1745941563798,0.32265467,94981.0,94980.0,2.072318]
[1745941564200,0.32265467,94981.0,94980.0,2.135418]
[1745941565096,0.2425157,94981.0,94980.0,2.135418]
[1745941565498,0.032,94981.0,94980.0,2.135418]
[1745941565892,0.2425157,94981.0,94980.0,2.135418]
[1745941566287,0.2425157,94981.0,94980.0,0.0641]
[1745941566492,0.2425157,94981.0,94980.0,0.274618]
[1745941567406,0.2425157,94981.0,94980.0,1.774618]
[1745941567599,0.2754157,94981.0,94980.0,1.774618]
[1745941568198,0.0649,94981.0,94980.0,1.774618]
[1745941568399,0.2754157,94981.0,94980.0,1.774618]
[1745941569508,0.0649,94981.0,94980.0,1.774618]
[1745941569698,0.032,94981.0,94980.0,1.774618]
[1745941569996,0.08013897,94996.0,94980.0,1.774618]
[1745941569997,0.2104896,94993.0,94988.0,0.2105002]
[1745941570194,0.08013897,94996.0,94994.0,0.2104869]
[1745941570195,0.0327,94995.0,94994.0,0.2104869]
[1745941570395,0.2431847,94995.0,94994.0,0.2104869]
[1745941570800,0.2431847,94995.0,94994.0,1.7104869]
[1745941571194,0.2451847,94995.0,94994.0,1.7104869]
[1745941571394,0.2760847,94995.0,94994.0,1.7332869]
[1745941572593,0.0656,94995.0,94994.0,1.7332869]
[1745941572792,0.2760847,94995.0,94994.0,1.7104869]
[1745941572995,0.2760847,94995.0,94993.0,0.0532]
[1745941573198,0.2760847,94995.0,94994.0,0.2104869]
[1745941573502,0.2740847,94995.0,94994.0,0.2124869]
[1745941573700,0.2740847,94995.0,94994.0,0.2144869]
[1745941574103,0.2740847,94995.0,94994.0,1.7780869]
[1745941574999,0.2740847,94995.0,94994.0,1.7760869]
[1745941575307,0.6348847,94995.0,94994.0,0.0676]
[1745941575696,0.6348847,94995.0,94994.0,0.004]
[1745941576098,0.7548847,94995.0,94994.0,0.004]
[1745941576292,0.7548847,94995.0,94994.0,0.2144869]
[1745941576497,0.7548847,94995.0,94994.0,0.004]
[1745941577405,0.3157657,94987.0,94986.0,0.2104928]
[1745941577609,0.3157657,94987.0,94986.0,0.2760528]
[1745941578299,0.3157657,94987.0,94986.0,1.7760528]
[1745941578803,0.3157657,94987.0,94986.0,1.56556]
[1745941579010,0.3157657,94987.0,94986.0,1.7760528]
[1745941579507,0.3157657,94987.0,94986.0,1.7770528]
[1745941581003,0.063,94991.0,94988.0,0.0526246]
[1745941581203,0.063,94991.0,94990.0,0.2104958]
[1745941581903,0.063,94991.0,94990.0,0.2760558]
[1745941582098,0.2734936,94991.0,94990.0,0.2760558]
[1745941582303,0.2734936,94991.0,94990.0,0.29165674]
[1745941582713,0.063,94991.0,94990.0,0.29165674]
[1745941582916,0.063,94991.0,94990.0,1.79265674]
[1745941583414,0.2734936,94991.0,94990.0,1.79265674]
[1745941583715,0.2734936,94991.0,94990.0,1.79266064]
[1745941584012,0.2734936,94991.0,94990.0,1.79466064]
[1745941584612,0.2734936,94991.0,94990.0,1.79666064]
[1745941585309,0.2734936,94991.0,94990.0,1.79666804]
[1745941585510,0.2734936,94991.0,94990.0,1.79566804]
[1745941586199,0.2734936,94991.0,94990.0,1.7800558]
[1745941586807,0.2734936,94991.0,94990.0,1.7780558]
[1745941586999,0.2734936,94991.0,94990.0,0.004]
[1745941587204,0.2105047,94986.0,94985.0,0.06556]
[1745941587407,0.2105202,94979.0,94978.0,0.2105217]
[1745941588307,0.3613202,94979.0,94978.0,0.2105217]
[1745941588612,0.3613202,94979.0,94978.0,0.2115217]
[1745941589208,0.2413202,94979.0,94978.0,0.2125217]
[1745941589811,0.2939507,94979.0,94978.0,0.06556]
[1745941590413,0.3246507,94979.0,94978.0,0.06556]
[1745941590613,0.6854507,94979.0,94978.0,0.06556]
[1745941590914,0.6864507,94979.0,94978.0,0.06556]
[1745941591114,0.8064507,94979.0,94978.0,0.06556]
[1745941591511,0.8054507,94979.0,94978.0,0.06556]
[1745941591816,0.8064507,94979.0,94978.0,0.06556]
[1745941592919,0.210529,94976.0,94975.0,0.210529]
[1745941593120,0.210529,94975.0,94974.0,0.06556]
[1745941593308,0.273429,94975.0,94974.0,0.06556]
[1745941593709,0.0526344,94972.0,94969.0,0.06556]
[1745941593914,0.5713401,94970.0,94969.0,0.06556]
[1745941594215,0.2105822,94951.0,94950.0,0.263229]
[1745941594418,0.5713822,94951.0,94950.0,0.328789]
[1745941594719,0.3608,94951.0,94950.0,1.744109]
[1745941594917,0.5713822,94951.0,94950.0,1.76026346]
[1745941595212,0.6341822,94951.0,94950.0,1.76026346]
[1745941596214,0.6341822,94951.0,94950.0,1.77307398]
[1745941596415,0.6341822,94951.0,94950.0,1.77807398]
[1745941597321,0.6341822,94951.0,94950.0,1.78207398]
[1745941598409,0.4236,94951.0,94950.0,1.78207398]
[1745941598718,0.4236,94951.0,94950.0,1.77807398]
[1745941598922,0.4236,94951.0,94950.0,1.79557398]
[1745941599117,0.4236,94951.0,94950.0,1.91557398]
[1745941599417,0.3608,94951.0,94950.0,1.91557398]
[1745941600717,0.0324,94955.0,94954.0,0.2105756]
[1745941601119,0.0324,94955.0,94954.0,0.3305756]
[1745941601325,0.0324,94955.0,94954.0,0.4358876]
[1745941601520,0.0324,94955.0,94954.0,0.4399876]
[1745941601927,0.0324,94955.0,94954.0,1.7499876]
[1745941602317,0.0324,94955.0,94954.0,1.7549876]
[1745941602712,0.0324,94955.0,94954.0,1.7599876]
[1745941604326,0.2120306,94975.0,94974.0,0.2105313]
[1745941604517,0.2120306,94975.0,94974.0,0.2760913]
[1745941605619,0.2453306,94975.0,94974.0,0.2760913]
[1745941605825,0.2453306,94975.0,94974.0,0.2770913]
[1745941606915,0.2453306,94975.0,94974.0,0.2780913]
[1745941607329,0.0348,94975.0,94974.0,0.2780913]
[1745941608132,0.245329,94975.0,94974.0,1.5880913]
[1745941608332,0.245329,94975.0,94974.0,1.5870913]
[1745941608534,0.245329,94975.0,94974.0,1.5880913]
[1745941609537,0.245329,94975.0,94974.0,1.5890913]
[1745941609840,0.245329,94975.0,94974.0,1.5880913]
[1745941610040,0.245329,94975.0,94974.0,1.5900913]
[1745941613735,0.245329,94975.0,94974.0,1.5245313]
[1745941613937,0.245329,94975.0,94974.0,1.5902913]
[1745941615343,0.245329,94975.0,94974.0,1.5882913]
[1745941616152,0.245329,94975.0,94974.0,1.5872913]
[1745941616449,0.606129,94975.0,94974.0,1.5872913]
[1745941616952,0.606129,94975.0,94974.0,1.37676]
[1745941617135,0.726129,94975.0,94974.0,0.06676]
[1745941617340,0.726129,94975.0,94974.0,0.001]
[1745941617642,0.726129,94975.0,94974.0,1.5215313]
[1745941618050,0.726129,94975.0,94974.0,1.311]
[1745941618350,0.726129,94975.0,94974.0,0.2115313]
[1745941618740,0.726129,94975.0,94974.0,0.001]
[1745941619542,0.726129,94975.0,94974.0,0.2115313]
[1745941619741,0.756629,94975.0,94974.0,0.2115313]
[1745941619943,0.756629,94975.0,94974.0,0.001]
[1745941620239,0.756629,94975.0,94974.0,0.2115313]
[1745941621651,0.756629,94975.0,94974.0,0.001]
[1745941622452,0.2105423,94969.0,94968.0,0.06576]
[1745941622648,0.3158554,94961.0,94960.0,0.2105525]
[1745941622844,0.6766554,94961.0,94960.0,0.2763125]
[1745941623154,0.7966554,94961.0,94960.0,0.2763125]
[1745941624156,0.6766554,94961.0,94960.0,0.2763125]
[1745941624344,0.6240133,94961.0,94960.0,0.2763125]
[1745941624755,0.571373,94961.0,94960.0,0.2763125]
[1745941625547,0.602073,94961.0,94960.0,0.2823125]
[1745941626453,0.3915,94961.0,94960.0,0.2823125]
[1745941626645,0.6020601,94961.0,94960.0,0.2823125]
[1745941628348,0.2412601,94961.0,94960.0,0.2823125]
[1745941629860,0.0307,94961.0,94960.0,0.2823125]
[1745941630056,0.0307,94961.0,94960.0,0.4023125]
[1745941630744,0.0307,94961.0,94960.0,0.4209125]
[1745941630950,0.0307,94961.0,94960.0,0.5262205]
[1745941631145,0.0307,94961.0,94960.0,1.8362205]
[1745941631559,0.02288946,94961.0,94960.0,1.8362205]
[1745941635157,0.0526277,94984.0,94979.0,0.2105202]
[1745941635353,0.5713195,94980.0,94979.0,0.2762802]
[1745941636655,0.5723195,94980.0,94979.0,0.2762802]
[1745941636847,0.5723195,94980.0,94979.0,0.06576]
[1745941637047,0.5723195,94980.0,94979.0,0.2772802]
[1745941637949,0.5723195,94980.0,94979.0,0.2782802]
[1745941638456,0.6650195,94980.0,94979.0,0.2782802]
[1745941638962,0.4545,94980.0,94979.0,0.2782802]
[1745941639759,0.664018,94980.0,94979.0,0.2782802]
[1745941640065,0.664018,94980.0,94979.0,0.2762802]
[1745941640264,0.4535,94980.0,94979.0,0.2792802]
[1745941640453,0.664018,94980.0,94979.0,0.2802802]
[1745941640853,0.664018,94980.0,94979.0,0.2772802]
[1745941641148,0.664018,94980.0,94979.0,0.2792802]
[1745941641648,0.4535,94980.0,94979.0,0.2792802]
[1745941641864,0.4213,94980.0,94979.0,0.2792802]
[1745941642260,0.0605,94980.0,94979.0,0.2792802]
[1745941642455,0.03,94980.0,94979.0,1.8094802]
[1745941644159,0.3608,94988.0,94985.0,0.2105069]
[1745941644764,0.2104729,95001.0,94989.0,0.0526243]
[1745941644954,0.0324,94998.0,94995.0,0.2104847]
[1745941645266,0.0324,94998.0,94995.0,0.2760847]
[1745941646054,0.08213897,94996.0,94995.0,0.29217385]
[1745941646860,0.08313897,94996.0,94995.0,0.29217385]
[1745941647065,0.08113897,94996.0,94995.0,0.29217385]
[1745941647266,0.08113897,94996.0,94995.0,0.29317385]
[1745941647566,0.08013897,94996.0,94995.0,0.29317385]
[1745941647768,0.11343897,94996.0,94995.0,0.29617385]
[1745941648957,0.11343897,94996.0,94995.0,0.32677385]
[1745941649251,0.0333,94996.0,94995.0,0.32677385]
[1745941649451,0.0333,94996.0,94995.0,1.82777385]
[1745941650956,0.0323,94997.0,94996.0,0.2104825]
[1745941651153,0.0323,94997.0,94996.0,0.2711825]
[1745941651670,0.0323,94997.0,94996.0,1.7711825]
[1745941652172,0.0323,94997.0,94996.0,1.7751825]
[1745941653257,0.0315,95007.0,95006.0,0.2104603]
[1745941653461,0.0306,95007.0,95006.0,0.2104603]
[1745941653862,0.0306,95007.0,95006.0,1.7104603]
[1745941654062,0.0306,95007.0,95006.0,1.7724603]
[1745941655365,0.0306,95007.0,95006.0,1.7734603]
[1745941657670,0.0306,95007.0,95006.0,1.8390203]
[1745941658266,0.0306,95007.0,95006.0,1.84690081]
[1745941660874,0.0306,95007.0,95006.0,1.78134081]
[1745941661076,0.0306,95007.0,95006.0,1.84690081]
[1745941662973,0.0306,95007.0,95006.0,1.78490081]
[1745941668268,0.0306,95007.0,95006.0,1.57444051]
[1745941668466,0.2410581,95007.0,95006.0,1.78490081]
[1745941668876,0.0306,95007.0,95006.0,1.78490081]
[1745941669267,0.1506,95007.0,95006.0,1.78490081]
[1745941669672,0.1506,95007.0,95006.0,0.28490081]
[1745941670685,0.1506,95007.0,95006.0,1.78490081]
[1745941670974,0.1506,95007.0,95006.0,1.81690081]
[1745941671177,0.0306,95007.0,95006.0,1.81690081]
[1745941674680,0.0306,95007.0,95006.0,1.83256686]
[1745941675583,0.0306,95007.0,95006.0,1.80056686]
[1745941676081,0.0306,95007.0,95006.0,1.80052686]
[1745941677181,0.1506,95007.0,95006.0,1.80052686]
[1745941677580,0.0332,95015.0,95006.0,1.95086656]
[1745941677780,0.2630192,95028.0,95027.0,0.2104093]
[1745941677983,0.2630192,95028.0,95027.0,0.22607535]
[1745941678177,0.3830192,95028.0,95027.0,0.22607535]
[1745941678979,0.3880192,95028.0,95027.0,0.22607535]
[1745941679182,0.3880192,95028.0,95027.0,0.01566605]
[1745941679389,0.125,95028.0,95027.0,0.22607985]
[1745941679779,0.3354116,95028.0,95027.0,0.22607985]
[1745941680981,0.4029116,95028.0,95027.0,0.22631612]
[1745941682383,0.4029116,95028.0,95027.0,0.01590232]
[1745941682685,0.5081436,95028.0,95027.0,0.01590232]
[1745941683276,0.5391436,95028.0,95027.0,0.01590232]
[1745941687196,0.210436,95017.0,95016.0,0.06552]
[1745941687493,0.31568,95017.0,95016.0,0.06552]
[1745941688089,0.49798,95017.0,95016.0,0.06552]
[1745941688290,0.49898,95017.0,95016.0,0.06552]
[1745941688491,0.50098,95017.0,95016.0,0.06552]
[1745941689196,0.2104581,95007.0,95006.0,0.00788051]
[1745941689396,0.2104626,95006.0,95004.0,0.06552]
[1745941689697,0.3038626,95006.0,95005.0,0.2104619]
[1745941690100,0.4238626,95006.0,95005.0,0.2104619]
[1745941690288,0.2104626,95005.0,95004.0,0.06552]
[1745941690697,0.2720626,95005.0,95004.0,0.06552]
[1745941691296,0.3920626,95005.0,95004.0,0.06552]
[1745941692400,0.3920626,95005.0,95004.0,0.07335244]
[1745941692792,0.3930626,95005.0,95004.0,0.07335244]
[1745941693686,0.3930626,95005.0,95004.0,0.00783244]
[1745941693895,0.210467,95003.0,95002.0,0.3608]
[1745941695199,0.12,95003.0,95002.0,0.623886]
[1745941695403,0.121,95003.0,95002.0,0.68441499]
[1745941695801,0.331467,95003.0,95002.0,0.63179819]
[1745941696190,0.211467,95003.0,95002.0,0.69731819]
[1745941696598,0.243367,95003.0,95002.0,0.69931819]
[1745941696793,0.243367,95003.0,95002.0,2.19931819]
[1745941697296,0.242367,95003.0,95002.0,2.19731819]
[1745941697601,0.242367,95003.0,95002.0,2.19931819]
[1745941699108,0.242367,95003.0,95002.0,2.21495689]
[1745941699408,0.242367,95003.0,95002.0,2.21495572]
[1745941701097,0.362367,95003.0,95002.0,2.21495572]
[1745941701294,0.362367,95003.0,95002.0,2.21487638]
[1745941701809,0.1519,95003.0,95002.0,2.21487638]
[1745941702203,0.0319,95003.0,95002.0,2.21487638]
[1745941702799,0.0319,95003.0,95002.0,2.16225958]
[1745941703204,0.1519,95003.0,95002.0,2.16225958]
[1745941703808,0.362367,95003.0,95002.0,2.09673958]
[1745941704109,0.362367,95003.0,95002.0,2.16225958]
[1745941704411,0.1519,95003.0,95002.0,2.16225958]
[1745941705211,0.1519,95003.0,95002.0,2.16232939]
[1745941708911,0.1519,95003.0,95002.0,2.16235643]
[1745941709911,0.362367,95003.0,95002.0,1.95188723]
[1745941710114,0.362367,95003.0,95002.0,0.45188723]
[1745941710299,0.723167,95003.0,95002.0,0.02556723]
[1745941710500,0.768867,95003.0,95002.0,0.02556723]
[1745941711310,0.408067,95003.0,95002.0,0.02556723]
[1745941711902,0.409067,95003.0,95002.0,0.00991219]
[1745941712613,0.769867,95003.0,95002.0,0.00791219]
[1745941712817,0.2104803,94997.0,94996.0,0.06552]
[1745941713211,0.3304803,94997.0,94996.0,0.06552]
[1745941713510,0.3304803,94997.0,94996.0,0.2760025]
[1745941713709,0.3304803,94997.0,94996.0,0.36977615]
[1745941714103,0.3304803,94997.0,94996.0,0.16029365]
[1745941714306,0.3304803,94997.0,94996.0,0.37077615]
[1745941715310,0.3314803,94997.0,94996.0,0.37077615]
[1745941715721,0.3314803,94997.0,94996.0,0.36977615]
[1745941716019,0.3314803,94997.0,94996.0,0.37077615]
[1745941716208,0.3314803,94997.0,94996.0,0.16029365]
[1745941716605,0.3314803,94997.0,94996.0,0.15929365]
[1745941717210,0.3314803,94997.0,94996.0,0.07339365]
[1745941723612,0.4367483,94997.0,94996.0,0.00787365]
[1745941723822,0.2104891,94993.0,94992.0,0.00157907]
[1745941724019,0.5712891,94993.0,94992.0,0.00157907]
[1745941724214,0.7965611,94993.0,94992.0,0.00157907]
[1745941724605,0.8800611,94993.0,94992.0,0.00157907]
[1745941725118,0.8800611,94993.0,94992.0,0.00257907]
[1745941726015,0.8830611,94993.0,94992.0,0.00157907]
[1745941727506,0.8840611,94993.0,94992.0,0.00157907]
[1745941727911,0.8840611,94993.0,94992.0,0.00952458]
[1745941728417,0.8850611,94993.0,94992.0,0.00952458]
[1745941732125,0.96530957,94993.0,94992.0,0.00952458]
[1745941734826,0.2105024,94987.0,94986.0,0.00157902]
[1745941735024,0.2105024,94987.0,94963.0,0.06552]
[1745941735025,0.5262934,94981.0,94963.0,0.06552]
[1745941735218,0.2105446,94968.0,94967.0,0.0402]
[1745941735418,0.0526372,94967.0,94963.0,0.03339382]
[1745941735719,0.2105645,94959.0,94958.0,0.0848]
[1745941735922,0.5713645,94959.0,94958.0,0.0848]
[1745941736119,0.6913645,94959.0,94958.0,0.0848]
[1745941736426,0.2105667,94958.0,94957.0,0.21214835]
[1745941736624,0.3056667,94958.0,94957.0,0.02641043]
[1745941736825,0.3056667,94958.0,94957.0,0.23697933]
[1745941737230,0.3811667,94958.0,94957.0,0.38917933]
[1745941737618,0.3811667,94958.0,94957.0,0.39317933]
[1745941738331,0.3811667,94958.0,94957.0,0.18761043]
[1745941738715,0.3811667,94958.0,94957.0,0.19551941]
[1745941740128,0.7419667,94958.0,94957.0,0.19551941]
[1745941741020,0.7419667,94958.0,94957.0,0.04331941]
[1745941742221,0.6219667,94958.0,94957.0,0.04331941]
[1745941745728,0.6742667,94958.0,94957.0,0.09651941]
[1745941749822,0.6219667,94958.0,94957.0,0.09651941]
[1745941750334,0.5713667,94958.0,94957.0,0.30708831]
[1745941751231,0.2105667,94958.0,94957.0,0.42708831]
[1745941751926,0.2105667,94958.0,94957.0,1.92708831]
[1745941753735,0.2105667,94958.0,94957.0,1.71651941]
[1745941754119,0.2105667,94958.0,94957.0,1.59651941]
[1745941754519,0.2105667,94958.0,94957.0,0.14981941]
[1745941754922,0.2105667,94958.0,94957.0,0.36038831]
[1745941758021,0.2105667,94958.0,94957.0,0.14981941]
[1745941758438,0.2612667,94958.0,94957.0,0.14981941]
[1745941763733,0.2612667,94958.0,94957.0,0.04331941]
[1745941764236,0.2105667,94958.0,94957.0,0.25388831]
[1745941764823,0.2105667,94958.0,94957.0,0.35288831]
[1745941766339,0.08024847,94961.0,94957.0,0.14231941]
[1745941766527,0.08024847,94961.0,94960.0,0.2105623]
[1745941766732,0.29080857,94961.0,94960.0,0.2105623]
[1745941766930,0.08024847,94961.0,94960.0,0.2105623]
[1745941767131,0.08024847,94961.0,94960.0,0.3305623]
[1745941767332,0.29080857,94961.0,94960.0,0.3305623]
[1745941767527,0.29080857,94961.0,94960.0,0.3335623]
[1745941767739,0.08024847,94961.0,94960.0,0.3335623]
[1745941768138,0.29080857,94961.0,94960.0,0.3335623]
[1745941768731,0.29080857,94961.0,94960.0,1.8335623]